[Event "34th Pula Open 2022"]
[Site "Pula"]
[Date "2022.06.21"]
[Round "5.11"]
[White "Lavrencic, Matic"]
[Black "Stankovic, Boris"]
[Result "0-1"]
[ECO "B33"]
[WhiteElo "2130"]
[BlackElo "2287"]
[Annotator "TA"]
[PlyCount "92"]
[EventDate "2022.06.18"]
[EventType "swiss"]
[EventCountry "CRO"]
[SourceTitle "playchess.com"]
[Source "ChessBase"]
[SourceQuality "1"]
[TimeControl "5400+30"]

{[%evp 24,92,0,4,20,0,0,0,5,0,23,0,3,-31,-20,-27,0,-14,0,0,0,-8,0,0,0,0,0,0,0,0,0,0,-8,-24,-17,-31,-36,-29,0,-135,8,10,79,90,66,-36,-22,-91,-62,-78,-82,-224,-63,-96,-120,-216,-165,-232,-222,-456,-450,-502,-497,-485,-438,-400,-414,-475,-460,-400,-358]} 1. e4 {[%emt 0:00:05]} c5 {[%emt 0:00:27]} 2. Nf3 {[%emt 0:00:05]} Nc6 {[%emt 0:00:06]} 3. d4 {[%emt 0:00:10]} cxd4 {[%emt 0:00:06]} 4. Nxd4 {[%emt 0:00:06]} Nf6 {[%emt 0:00:13]} 5. Nc3 {[%emt 0:00:08]} e5 {[%emt 0:00:11]} 6. Ndb5 {[%emt 0:00:08]} d6 {[%emt 0:00:16]} 7. Nd5 {[%emt 0:00:21]} Nxd5 {[%emt 0:00:21]} 8. exd5 {[%emt 0:00:07]} Nb8 {[%emt 0:01:08]} 9. c4 {[%emt 0:00:26]} a6 {[%emt 0:06:40]} 10. Nc3 {[%emt 0:00:14]} Be7 {[%emt 0:01:06]} 11. Bd3 {[%emt 0:00:37]} O-O {[%emt 0:01:00]} 12. O-O {[%emt 0:00:07]} f5 {[%emt 0:01:06]} 13. f3 {[%emt 0:00:09]} Bg5 {[%emt 0:10:59] is the legacy move (13...Nd7). B33: Sicilian: Pelikan and Sveshnikov Variations.} 14. Kh1 {[%emt 0:00:41]} Nd7 {[%emt 0:01:54]} 15. a3 {[%emt 0:00:12]} Bxc1 {[%emt 0:05:17] The position is equal.} 16. Rxc1 {[%emt 0:00:16]} Qh4 {[%emt 0:01:29] [#]} 17. Qe1 $146 {[%emt 0:02:28]} ({Predecessor:} 17. b4 Rf6 18. g3 Qh3 19. Rf2 Rh6 20. Qd2 Nf6 21. c5 dxc5 22. bxc5 Bd7 23. Kg1 {½-½ (77) Kalisky,V (2253)-Medvegyne Balogh,E (2082) Hungary 2008}) 17... Qh6 {[%emt 0:04:05]} 18. Bc2 {[%emt 0:10:14]} e4 {[%emt 0:11:28]} 19. f4 {[%emt 0:03:53]} Nf6 {[%emt 0:04:28][%cal Ob7b5]} (19... b5 $5) 20. Kg1 {[%emt 0:04:41]} Bd7 {[%emt 0:02:58]} 21. b4 {[%emt 0:05:46]} Rfc8 {[%emt 0:04:38]} 22. Bb3 {[%emt 0:04:16]} a5 {[%emt 0:03:02]} 23. h3 {[%emt 0:02:48]} axb4 {[%emt 0:07:08]} 24. axb4 {[%emt 0:00:13]} Ra3 {[%emt 0:00:27]} 25. Rb1 {[%emt 0:03:17]} Kh8 {[%emt 0:00:53]} 26. Qc1 {[%emt 0:04:06]} Raa8 {[%emt 0:01:21][%cal Ob7b5]} 27. Qe3 {[%emt 0:00:59]} Rg8 {[%emt 0:01:13][%cal Bc8g8,Bg8g5,Bg5h5][%mdl 32]} 28. Ne2 {[%emt 0:05:19]} g5 {[%emt 0:08:48]} 29. fxg5 {[%emt 0:03:57]} Rxg5 {[%emt 0:00:08]} 30. Nf4 {[%emt 0:01:13]} Rag8 {[%emt 0:02:10][%cal Og5g2]} (30... Nh5 $5 {[%cal Rh5f4]} 31. Qc3+ Rg7 32. Nxh5 Qxh5 $15) 31. Qd4 {[%emt 0:04:25] [#]} (31. Qc3 $11) 31... Qg7 {[%emt 0:00:56]} ({Black should play} 31... Rxg2+ $1 $17 {[%mdl 512]} 32. Nxg2 f4) 32. Rb2 $11 {[%emt 0:01:33]} Nh5 {[%emt 0:04:34]} (32... Qe7 $11 {keeps the balance.}) 33. Qxg7+ $16 {[%emt 0:00:24]} Kxg7 {[%emt 0:02:33]} 34. Nxh5+ {[%emt 0:01:45]} ({White has to play} 34. h4 $14 Nxf4 35. hxg5) 34... Rxh5 $15 {[%emt 0:00:02]} 35. c5 {[%emt 0:06:51] [#]} (35. Bc2 $1 $11 {remains equal.}) 35... Kf6 $1 $36 {[%emt 0:05:21][%mdl 2048] Black is more active.} 36. c6 {[%emt 0:02:19]} Bc8 {[%emt 0:00:12] And now ...Rxh3 would win.} 37. Ra1 {[%emt 0:05:00]} (37. Kh2 $17) 37... Rhg5 $2 {[%emt 0:00:27]} (37... Rxh3 $1 $19 {...f4 is the strong threat.} 38. Ra7 b5) 38. Ra7 {[%emt 0:05:31] [#]} R5g7 {[%emt 0:01:40]} 39. Ba4 {[%emt 0:06:01]} (39. Bd1 $17 {was necessary.}) 39... b6 {[%emt 0:01:43]} 40. Ra8 {[%emt 0:01:19]} (40. Rxg7 $142 Rxg7 41. Kf2) 40... f4 $19 {[%emt 0:00:28][%cal Bf5f4,Bf4f3,Bf3g2][%mdl 32] aiming for ...f3.} 41. Bb5 $2 {[%emt 0:04:50]} (41. Kh2 {might work better.}) 41... f3 {[%emt 0:01:52][%cal Rg7g2]} 42. Kh1 {[%emt 0:02:38] [#]} ({Stronger than} 42. g4 Ke5 43. Kh2 h5 $19) 42... Bxh3 $1 {[%emt 0:03:48][%mdl 512]} 43. Rxg8 {[%emt 0:00:17]} fxg2+ {[%emt 0:00:34]} 44. Kg1 {[%emt 0:00:13]} Rxg8 {[%emt 0:00:00]} 45. Ba6 {[%emt 0:01:09]} Ke5 {[%emt 0:00:45]} 46. Rb3 {[%emt 0:00:31]} Bc8 {[%emt 0:00:42] Weighted Error Value: White=0.38/Black=0.22 (precise)} 0-1

[Event "34th Pula Open 2022"]
[Site "Pula"]
[Date "2022.06.21"]
[Round "5.12"]
[White "Milekic, Daniel"]
[Black "Balinski, Damian"]
[Result "1/2-1/2"]
[ECO "A80"]
[WhiteElo "2280"]
[BlackElo "2184"]
[Annotator "TA"]
[PlyCount "53"]
[EventDate "2022.06.18"]
[EventType "swiss"]
[EventCountry "CRO"]
[SourceTitle "playchess.com"]
[Source "ChessBase"]
[SourceQuality "1"]
[TimeControl "5400+30"]

{[%evp 9,53,16,40,9,6,-4,13,9,43,37,39,-16,-16,-60,-42,-60,0,0,0,0,0,-18,-14,-6,0,0,0,0,0,0,15,14,21,14,33,5,67,17,99,0,83,63,63,35,18,32]} 1. d4 {[%emt 0:00:30]} f5 {[%emt 0:01:33]} 2. Nc3 {[%emt 0:00:31]} Nf6 {[%emt 0:00:05]} 3. Bg5 {[%emt 0:00:22]} d5 {[%emt 0:00:08]} 4. f3 {[%emt 0:00:36]} Nc6 {[%emt 0:00:42][%cal Bb8c6,Bc6a5,Ba5b7][%mdl 32]} 5. Qd2 {[%emt 0:01:36]} e6 {[%emt 0:01:20]} 6. a3 {[%emt 0:00:59] A80: Dutch Defence: Unusual White second moves.} Be7 {[%emt 0:01:03]} 7. Nh3 {[%emt 0:04:56]} O-O {[%emt 0:00:57]} 8. e3 {[%emt 0:04:38] [#]} Na5 $146 {[%emt 0:05:01]} ({Predecessor:} 8... Bd7 9. Nf4 a6 10. h4 Bd6 11. Nh5 Ne7 12. Nxf6+ gxf6 13. Bf4 Bxf4 14. exf4 c5 15. dxc5 {1-0 (45) Papenin,N (2630)-Kuiper,J (2506) ICCF email 2010}) 9. Nf4 {[%emt 0:09:26]} b6 {[%emt 0:02:20]} 10. b4 {[%emt 0:25:37]} (10. h4 $14) 10... Nb7 $11 {[%emt 0:02:27]} 11. Nd1 {[%emt 0:05:19]} a5 {[%emt 0:22:49] [#] White must now prevent ...axb4.} 12. Rb1 {[%emt 0:03:06]} Ne4 {[%emt 0:14:21]} 13. fxe4 {[%emt 0:02:02] Hoping for Bxe7.} Bxg5 {[%emt 0:00:02]} 14. e5 {[%emt 0:01:28]} axb4 {[%emt 0:00:03]} 15. axb4 {[%emt 0:00:14]} c5 {[%emt 0:10:18]} 16. c3 {[%emt 0:02:23]} c4 {[%emt 0:00:55]} 17. Be2 {[%emt 0:01:27]} Bd7 {[%emt 0:00:22]} 18. O-O {[%emt 0:00:52]} Qe7 {[%emt 0:00:07]} 19. Nf2 {[%emt 0:02:31]} Ra7 {[%emt 0:05:33]} 20. Ra1 {[%emt 0:00:54]} Rfa8 {[%emt 0:00:03]} 21. Qb2 {[%emt 0:00:26]} Qe8 {[%emt 0:05:58]} 22. Bf3 {[%emt 0:01:49]} Kh8 {[%emt 0:02:23]} (22... Nd8 $11) 23. g3 {[%emt 0:02:16]} (23. Rxa7 $14 Rxa7 24. N2h3) 23... Qb8 {[%emt 0:02:33]} (23... Nd8 $11) 24. Kg2 {[%emt 0:03:00] White is much more active.} (24. Rxa7 $16 Rxa7 25. g4) 24... Ra4 {[%emt 0:00:33]} (24... Nd8 $11) 25. Rxa4 $16 {[%emt 0:00:25]} Rxa4 {[%emt 0:00:03]} 26. Ra1 {[%emt 0:00:17] [#] Strongly threatening Rxa4.} (26. g4 $5 {[%cal Rg4f5]}) 26... Qa7 {[%emt 0:00:19]} 27. Rxa4 {[%emt 0:00:24] Weighted Error Value: White=0.19 (very precise) /Black=0.27 (precise)} 1/2-1/2

[Event "34th Pula Open 2022"]
[Site "Pula"]
[Date "2022.06.22"]
[Round "6.1"]
[White "De Vleeschauwer, Maarten"]
[Black "Fercec, Nenad"]
[Result "1/2-1/2"]
[ECO "B21"]
[WhiteElo "2255"]
[BlackElo "2415"]
[Annotator "TA"]
[PlyCount "37"]
[EventDate "2022.06.18"]
[EventType "swiss"]
[EventCountry "CRO"]
[SourceTitle "playchess.com"]
[Source "ChessBase"]
[SourceQuality "1"]
[TimeControl "5400+30"]

{[%evp 14,37,22,24,37,36,43,40,40,30,55,38,62,45,108,98,116,70,72,64,75,0,62,0,78,0]} 1. e4 {[%emt 0:00:03]} c5 {[%emt 0:00:07]} 2. d4 {[%emt 0:00:12]} cxd4 {[%emt 0:00:08]} 3. c3 {[%emt 0:00:04]} d3 {[%emt 0:00:06]} 4. Bxd3 {[%emt 0:00:51]} Nc6 {[%emt 0:00:10]} 5. c4 {[%emt 0:00:23]} g6 {[%emt 0:00:09]} 6. Nf3 {[%emt 0:00:22]} Bg7 {[%emt 0:00:10]} 7. O-O {[%emt 0:00:30]} Nf6 {[%emt 0:00:18][%cal Bg8f6,Bf6d7,Bd7c5][%mdl 32]} 8. Nc3 {[%emt 0:00:30]} O-O {[%emt 0:00:20] B21: Sicilian: 2 f4 and Morra Gambit.} 9. h3 {[%emt 0:01:11]} d6 {[%emt 0:00:33]} 10. Be3 {[%emt 0:01:51]} Nd7 {[%emt 0:02:38] White is slightly better.} 11. Rc1 {[%emt 0:20:02]} Nc5 {[%emt 0:01:13]} 12. Bb1 {[%emt 0:02:00]} Be6 {[%emt 0:14:40]} 13. Qe2 {[%emt 0:05:12]} Qa5 {[%emt 0:05:31]} (13... Bc8 $14) 14. Nd5 $16 {[%emt 0:16:59]} Rfe8 {[%emt 0:16:34] [#]} 15. Bd2 $146 {[%emt 0:09:21]} (15. Rfd1 $16) ({Predecessor:} 15. Rfd1 Rac8 16. Ng5 Na4 17. b3 Nc3 18. Nxc3 Bxc3 19. Nxe6 fxe6 20. Qg4 Kf7 21. f4 {1-0 (69) Jackson,J (2246)-Slavin,A (2374) Crawley 2013}) 15... Qd8 $1 $14 {[%emt 0:00:35]} 16. Bc3 {[%emt 0:01:26]} Bh6 {[%emt 0:01:18]} 17. Bd2 {[%emt 0:01:21] White is more active.} Bg7 {[%emt 0:00:13]} 18. Bc3 {[%emt 0:01:08]} Bh6 $1 {[%emt 0:00:06]} 19. Bd2 {[%emt 0:13:15] Weighted Error Value: White=0.19 (very precise) /Black=0.10 (very precise)} (19. Rcd1 $16) 1/2-1/2

[Event "34th Pula Open 2022"]
[Site "Pula"]
[Date "2022.06.22"]
[Round "6.2"]
[White "Maki-Uuro, Miikka"]
[Black "Nikcevic, Nebojsa"]
[Result "1/2-1/2"]
[ECO "D20"]
[WhiteElo "2332"]
[BlackElo "2387"]
[Annotator "TA"]
[PlyCount "31"]
[EventDate "2022.06.18"]
[EventType "swiss"]
[EventCountry "CRO"]
[SourceTitle "playchess.com"]
[Source "ChessBase"]
[SourceQuality "1"]
[TimeControl "5400+30"]

{[%evp 11,31,13,17,16,21,9,17,24,31,10,14,8,14,14,24,19,25,28,27,9,10,12]} 1. d4 {[%emt 0:00:04]} d5 {[%emt 0:01:09]} 2. c4 {[%emt 0:00:08]} dxc4 {[%emt 0:00:07]} 3. e4 {[%emt 0:00:10][%cal Be2e4,Be4e5][%mdl 32]} Nf6 {[%emt 0:00:05][%cal Bg8f6,Bf6d5,Bd5b6][%mdl 32]} 4. e5 {[%emt 0:00:18]} Nd5 {[%emt 0:00:05]} 5. Bxc4 {[%emt 0:00:21]} Nb6 {[%emt 0:00:05]} 6. Bb3 {[%emt 0:00:20]} Bf5 {[%emt 0:00:07]} 7. Nc3 {[%emt 0:18:18][%cal Oe5e6] D20: Queen's Gambit Accepted: 3 e3 and 3 e4.} e6 {[%emt 0:00:49]} 8. Nf3 {[%emt 0:04:16]} Be7 {[%emt 0:02:39]} 9. O-O {[%emt 0:04:07]} Na6 {[%emt 0:03:53] [#]} 10. Qe2 $146 {[%emt 0:13:45]} ({Predecessor:} 10. a3 c6 11. Re1 Nc7 12. Bc2 Bg4 13. Qd3 Nbd5 14. Ne4 Nb5 15. Bd1 Qb6 16. Be3 {0-1 (31) Ersel,I-Ivanoff,G (2022) ICCF email 2006}) 10... O-O {[%emt 0:03:06]} 11. Rd1 {[%emt 0:09:57]} Nb4 {[%emt 0:02:19] Prevents d5.} 12. a3 {[%emt 0:02:46]} N4d5 {[%emt 0:00:10]} 13. Ne4 {[%emt 0:00:47]} a5 {[%emt 0:03:12]} 14. Bd2 {[%emt 0:03:31]} a4 {[%emt 0:03:33]} 15. Ba2 {[%emt 0:00:12]} c6 {[%emt 0:03:48]} 16. Rac1 {[%emt 0:00:19] An uneventful encounter.  Weighted Error Value: White=0.06 (flawless) /Black=0.03 (flawless)} 1/2-1/2

[Event "34th Pula Open 2022"]
[Site "Pula"]
[Date "2022.06.22"]
[Round "6.3"]
[White "Lim, Zhuo Ren"]
[Black "Popovic, Milan S"]
[Result "1/2-1/2"]
[ECO "E62"]
[WhiteElo "2290"]
[BlackElo "2383"]
[Annotator "TA"]
[PlyCount "46"]
[EventDate "2022.06.18"]
[EventType "swiss"]
[EventCountry "CRO"]
[SourceTitle "playchess.com"]
[Source "ChessBase"]
[SourceQuality "1"]
[TimeControl "5400+30"]

{[%evp 12,46,33,29,45,20,16,-73,-76,-94,-91,-92,-102,-95,-104,-104,-105,-97,-98,-186,-82,-127,0,-116,-99,-95,-119,-120,-45,-35,-75,-75,-50,-45,-52,-93,-74]} 1. c4 {[%emt 0:11:31]} Nf6 {[%emt 0:00:06]} 2. Nc3 {[%emt 0:00:16]} g6 {[%emt 0:00:05]} 3. Nf3 {[%emt 0:00:10]} Bg7 {[%emt 0:00:06]} 4. g3 {[%emt 0:00:08]} O-O {[%emt 0:00:08]} 5. Bg2 {[%emt 0:00:06]} d6 {[%emt 0:00:04]} 6. d4 {[%emt 0:00:08]} c6 {[%emt 0:00:05]} 7. e4 {[%emt 0:00:45]} Be6 {[%emt 0:00:07] [#] E62: King's Indian: Fianchetto: 6...c6 and Panno Variation (6...Nc6) without ...a6.} 8. Qd3 $146 {[%emt 0:03:46]} ({Predecessor:} 8. Qe2 Bg4 9. h3 Bxf3 10. Bxf3 Nfd7 11. Be3 c5 12. d5 Ne5 13. Bg2 Qb6 14. Rd1 Qb4 15. Bf1 {1-0 (64) Keymer,V (2630)-Xiong,J (2700) Riga 2021}) 8... d5 {[%emt 0:01:40]} 9. Ng5 {[%emt 0:00:53]} (9. cxd5 $11 {remains equal.} cxd5 10. e5) 9... dxe4 $1 $17 {[%emt 0:01:11]} 10. Ncxe4 {[%emt 0:01:13]} Nxe4 {[%emt 0:13:13]} 11. Bxe4 {[%emt 0:01:07]} Bc8 {[%emt 0:05:55]} 12. Be3 {[%emt 0:00:58]} h6 {[%emt 0:01:37]} 13. Nxf7 {[%emt 0:00:32]} Rxf7 {[%emt 0:02:31]} 14. Bxg6 {[%emt 0:00:04]} Rf8 {[%emt 0:04:27]} 15. g4 {[%emt 0:09:40]} (15. O-O $17) 15... Bxg4 {[%emt 0:03:26]} (15... Qa5+ $19 16. Kf1 (16. Bd2 $2 Qb6 $19) 16... Bxg4) 16. Rg1 {[%emt 0:00:20] [#]} Bf5 {[%emt 0:01:19]} 17. Qd2 {[%emt 0:03:55]} (17. Bxf5 $11 Qa5+ 18. Kf1 Qxf5 19. Qxf5 Rxf5 20. Bxh6) 17... Bxg6 {[%emt 0:13:04]} 18. Rxg6 {[%emt 0:00:03]} Rf6 {[%emt 0:02:00]} 19. Rg3 {[%emt 0:01:15] [#] Threatens to win with Bxh6.} Kf7 {[%emt 0:05:08]} ({Black should play} 19... Qd6 $1 $17 {Strongly threatening ...Rg6.} 20. O-O-O Rg6 21. Rxg6 Qxg6) 20. O-O-O $15 {[%emt 0:00:54]} Qd7 {[%emt 0:00:29]} 21. d5 {[%emt 0:10:03]} Qf5 {[%emt 0:05:20] ...Nd7 is the strong threat.} 22. Bd4 {[%emt 0:00:20]} Nd7 {[%emt 0:02:43][%cal Oc6d5]} 23. Rdg1 {[%emt 0:04:26] [#]} Bf8 $1 {[%emt 0:07:00] Weighted Error Value: White=0.25 (precise) /Black=0.22 (precise)} 1/2-1/2

[Event "34th Pula Open 2022"]
[Site "Pula"]
[Date "2022.06.22"]
[Round "6.4"]
[White "Zufic, Miroslav"]
[Black "Starcevic, Ante Leon"]
[Result "1-0"]
[ECO "D94"]
[WhiteElo "2384"]
[BlackElo "2227"]
[Annotator "TA"]
[PlyCount "49"]
[EventDate "2022.06.18"]
[EventType "swiss"]
[EventCountry "CRO"]
[SourceTitle "playchess.com"]
[Source "ChessBase"]
[SourceQuality "1"]
[TimeControl "5400+30"]

{[%evp 14,49,22,15,87,80,70,71,106,106,114,111,118,97,254,243,241,235,240,255,265,234,362,299,463,404,414,404,818,352,403,361,606,591,577,562,553,499]} 1. d4 {[%emt 0:00:04]} Nf6 {[%emt 0:00:09]} 2. c4 {[%emt 0:00:12]} g6 {[%emt 0:00:52]} 3. Nf3 {[%emt 0:00:09]} Bg7 {[%emt 0:00:09]} 4. e3 {[%emt 0:00:23]} O-O {[%emt 0:00:28]} 5. Be2 {[%emt 0:00:03]} b6 {[%emt 0:01:28]} 6. O-O {[%emt 0:00:12]} Bb7 {[%emt 0:00:25]} 7. Nc3 {[%emt 0:00:16]} d5 {[%emt 0:01:45]} 8. b4 {[%emt 0:13:37]} c5 {[%emt 0:20:29] D94: Grünfeld: 4 Nf3 Bg7 5 e3.} (8... dxc4 $11 9. Bxc4 Ne8) 9. bxc5 $16 {[%emt 0:00:24]} (9. dxc5 Ne4 10. Nxe4 Bxa1 11. cxd5 Qxd5 $15) 9... bxc5 {[%emt 0:00:42]} 10. Rb1 {[%emt 0:00:35]} (10. dxc5 Ne4 11. Nxe4 Bxa1 $15) 10... cxd4 {[%emt 0:01:53] White is better.} 11. Nxd4 {[%emt 0:15:43] [#]} (11. Rxb7 $6 dxc3 12. Rb3 Nc6 $11) 11... Qd7 $146 {[%emt 0:29:09]} ({Predecessor:} 11... Ba6 12. cxd5 Bxe2 13. Ndxe2 Qc7 14. e4 Na6 15. Be3 Ng4 16. Bf4 Qc4 17. Qb3 Rfc8 18. Qxc4 Rxc4 {0-1 (45) Marvanyi,M-Rybansky,A (2080) Presov 2004}) 12. Qb3 {[%emt 0:04:42]} Ba6 {[%emt 0:00:38]} 13. cxd5 {[%emt 0:03:31] White is more active.} Rd8 $2 {[%emt 0:09:48]} (13... Rc8 $16) 14. Bxa6 $1 $18 {[%emt 0:09:36]} Nxa6 {[%emt 0:00:08] [#]} 15. Nc6 {[%emt 0:00:36] Against Rdb8} Re8 {[%emt 0:04:24]} 16. Ba3 {[%emt 0:07:23]} e6 {[%emt 0:03:24][%cal Re6d5]} 17. Ne5 {[%emt 0:16:33]} Qd8 {[%emt 0:02:21]} (17... Qc8 {was necessary.} 18. Nxf7 Kxf7) 18. Qb7 {[%emt 0:06:03]} Nxd5 {[%emt 0:01:14]} (18... Qc7 $142 19. d6 (19. Qxa6 Qxe5 20. dxe6 Rxe6 $16) 19... Qxb7 20. Rxb7 Rec8) 19. Qxf7+ {[%emt 0:02:10]} (19. Qxa6 Bxe5 20. Nxd5 Qxd5 $11) 19... Kh8 {[%emt 0:00:04]} 20. Nxd5 {[%emt 0:01:37]} ({Don't do} 20. Rb7 Qf6 21. Nxd5 exd5 $18) 20... Qxd5 {[%emt 0:00:58]} (20... exd5 $142 21. f4 Qf6 22. Qxd5 Qe6) 21. Nxg6+ {[%emt 0:05:22]} hxg6 {[%emt 0:00:14]} 22. Rb7 {[%emt 0:00:02][%csl Gb7][%cal Rf7g7]} Qe5 {[%emt 0:02:53] [#]} (22... Rg8 $2 23. Bb2 Qxb7 24. Qxb7 $18) (22... Nc7 23. Qxc7 Qe5) 23. Bb2 $1 {[%emt 0:00:09] White is clearly winning.} ({Weaker is} 23. Qxg6 Qf6 24. Qg4 (24. Qd3 e5 $16) 24... Reb8 $16) 23... Qxb2 {[%emt 0:00:06]} 24. Rxb2 {[%emt 0:00:07]} Bxb2 {[%emt 0:00:07]} 25. Qb7 {[%emt 0:00:14] White took control after the opening.  Weighted Error Value: White=0.28 (precise) /Black=0.80} 1-0